bitfinex/quotes_BTCUSD_20251029
["timestamp","ask_amount","ask_price","bid_price","bid_amount"]
[1761754280977,3.78631494,111290.0,111280.0,0.00908747]
[1761754282062,2.8415637,111290.0,111280.0,0.00908747]
[1761754282262,3.77231495,111290.0,111280.0,0.00908747]
[1761754282598,3.77731495,111290.0,111280.0,0.00908747]
[1761754283013,3.77231495,111290.0,111280.0,0.00908747]
[1761754283198,3.77931495,111290.0,111280.0,0.01008747]
[1761754283572,3.77231495,111290.0,111280.0,0.00908747]
[1761754283975,3.77831495,111290.0,111280.0,0.00908747]
[1761754284195,3.09706628,111290.0,111280.0,0.00908747]
[1761754284391,2.75706628,111290.0,111280.0,0.00908747]
[1761754284592,2.75806628,111290.0,111280.0,0.00908747]
[1761754284809,2.58000066,111290.0,111280.0,0.00908747]
[1761754285012,2.67927628,111290.0,111280.0,0.08632747]
[1761754285214,0.49956562,111290.0,111280.0,0.08632747]
[1761754285417,0.47287562,111290.0,111280.0,0.13616747]
[1761754285623,0.47287562,111290.0,111280.0,0.22598648]
[1761754285830,0.70687628,111290.0,111280.0,0.00908747]
[1761754286034,0.67327628,111290.0,111280.0,0.05609747]
[1761754286175,0.67327628,111290.0,111280.0,0.08632747]
[1761754286963,0.17969698,111300.0,111280.0,0.17914648]
[1761754287209,0.66154778,111310.0,111290.0,0.08007]
[1761754287354,0.49530873,111300.0,111290.0,0.08007]
[1761754287552,0.52241562,111300.0,111290.0,0.09068891]
[1761754287768,0.70211013,111300.0,111290.0,0.0008699]
[1761754287956,0.65709013,111300.0,111290.0,0.0008699]
[1761754288187,0.74166636,111300.0,111290.0,0.0008699]
[1761754288382,0.65709013,111300.0,111290.0,0.0008699]
[1761754288608,0.47287562,111300.0,111290.0,0.0809399]
[1761754288809,0.65257013,111300.0,111290.0,0.17175891]
[1761754288987,0.65257013,111300.0,111290.0,0.12191891]
[1761754289190,0.65709013,111300.0,111290.0,0.09168891]
[1761754289391,0.17969451,111300.0,111290.0,0.0018699]
[1761754289709,0.47287562,111300.0,111290.0,0.0809399]
[1761754289912,0.65257013,111300.0,111290.0,0.17075891]
[1761754290148,0.47287562,111300.0,111290.0,0.17375891]
[1761754290384,0.17969451,111300.0,111290.0,0.17075891]
[1761754290601,0.47287562,111300.0,111290.0,0.17075891]
[1761754290818,0.71872491,111300.0,111290.0,0.0310999]
[1761754291027,0.65257013,111300.0,111290.0,0.0809399]
[1761754291251,0.17969451,111300.0,111290.0,0.12191891]
[1761754291457,0.65257013,111300.0,111290.0,0.12191891]
[1761754291862,0.65709013,111300.0,111290.0,0.0018699]
[1761754292214,0.65257013,111300.0,111290.0,0.0018699]
[1761754292419,0.17969451,111300.0,111290.0,0.0028699]
[1761754292662,0.65257013,111300.0,111290.0,0.0018699]
[1761754293068,0.65257013,111300.0,111290.0,0.0048699]
[1761754294031,0.65257013,111300.0,111290.0,0.0008699]
[1761754294233,0.65257013,111300.0,111290.0,0.0018699]
[1761754294401,0.65257013,111300.0,111290.0,0.0320999]
[1761754294597,0.74162436,111300.0,111290.0,0.0018699]
[1761754294804,0.78624436,111300.0,111290.0,0.0018699]
[1761754294980,0.74162436,111300.0,111290.0,0.0018699]
[1761754295183,0.74162436,111300.0,111290.0,0.0028699]
[1761754295396,0.73669436,111300.0,111290.0,0.0028699]
[1761754295595,0.65257013,111300.0,111290.0,0.0320999]
[1761754295799,0.65257013,111300.0,111290.0,0.0350999]
[1761754296202,0.70212013,111300.0,111290.0,0.0018699]
[1761754296442,0.70212013,111300.0,111290.0,0.0008699]
[1761754296443,2.70212013,111300.0,111290.0,0.0008699]
[1761754296666,2.69680013,111300.0,111290.0,0.0018699]
[1761754296878,0.26951352,111300.0,111290.0,0.0320999]
[1761754297082,0.47287562,111300.0,111290.0,0.17175891]
[1761754297208,0.47287562,111300.0,111290.0,0.21878891]
[1761754297408,0.65257013,111300.0,111290.0,0.21878891]
[1761754297650,0.47287562,111300.0,111290.0,0.21878891]
[1761754298064,0.65257013,111300.0,111290.0,0.21878891]
[1761754298511,0.47287562,111300.0,111290.0,0.21878891]
[1761754298758,0.28658145,111340.0,111290.0,0.39849957]
[1761754298965,0.001,111300.0,111290.0,0.57672619]
[1761754299195,0.47287562,111330.0,111320.0,0.04978]
[1761754299399,0.47287562,111330.0,111320.0,0.08024743]
[1761754299617,0.47287562,111330.0,111320.0,0.13024743]
[1761754300493,0.47302172,111330.0,111320.0,0.30990966]
[1761754300696,0.0001461,111330.0,111320.0,0.40072867]
[1761754300900,0.0001461,111330.0,111320.0,0.22606644]
[1761754301101,0.47302172,111330.0,111320.0,0.40572867]
[1761754301464,0.47302172,111330.0,111320.0,0.22606644]
[1761754301789,0.65266781,111330.0,111320.0,0.22606644]
[1761754302445,0.65266781,111330.0,111320.0,0.17606644]
[1761754302446,0.73589766,111330.0,111320.0,0.17606644]
[1761754302646,0.73589766,111330.0,111320.0,0.00621743]
[1761754302856,1.25780328,111330.0,111320.0,0.00621743]
[1761754303407,1.59780328,111330.0,111320.0,0.00521743]
[1761754303643,3.59780328,111330.0,111320.0,0.00021743]
[1761754304076,3.59780328,111330.0,111320.0,0.00121743]
[1761754304915,3.07589766,111330.0,111320.0,0.00121743]
[1761754305154,0.99266781,111330.0,111320.0,0.00121743]
[1761754305418,0.99266781,111330.0,111320.0,0.00021743]
[1761754305625,1.04417781,111330.0,111320.0,0.00021743]
[1761754305834,1.04217781,111330.0,111320.0,0.00021743]
[1761754306047,1.51505343,111330.0,111320.0,0.00021743]
[1761754306253,1.08444682,111330.0,111320.0,0.00021743]
[1761754306461,1.08344682,111330.0,111320.0,0.00021743]
[1761754306687,0.99266781,111330.0,111320.0,0.00021743]
[1761754306838,0.70169781,111330.0,111320.0,0.00121743]
[1761754307111,3.64057472,111330.0,111320.0,1e-08]
[1761754307428,3.42691023,111330.0,111320.0,1e-08]
[1761754307680,2.78464249,111330.0,111320.0,1e-08]
[1761754307906,3.51672924,111330.0,111320.0,1e-08]
[1761754308135,0.17969451,111300.0,111290.0,0.04803]
[1761754308356,0.91178126,111300.0,111290.0,0.21809901]
[1761754308791,0.17969451,111300.0,111290.0,0.21809901]
[1761754309055,0.91178126,111300.0,111290.0,0.21809901]
[1761754310118,0.91178126,111300.0,111290.0,0.21909901]
[1761754310742,0.96266586,111300.0,111290.0,0.16909901]
[1761754310917,0.91178126,111300.0,111290.0,0.16909901]
[1761754311113,0.91178126,111300.0,111290.0,0.07928]
[1761754311310,0.91178126,111300.0,111290.0,0.08228]
[1761754311471,0.91274126,111300.0,111290.0,0.004]
[1761754311670,1.00256027,111300.0,111290.0,0.004]
[1761754312405,1.05126027,111300.0,111290.0,0.004]
[1761754312605,3.51726156,111300.0,111290.0,0.004]
[1761754313234,0.21589294,111290.0,111280.0,0.008]
[1761754313432,1.04696969,111290.0,111280.0,0.008]
[1761754313770,1.09785429,111290.0,111280.0,0.008]
[1761754313998,3.12558932,111290.0,111280.0,0.008]
[1761754314181,3.21540833,111290.0,111280.0,0.00887]
[1761754314318,3.21540833,111290.0,111280.0,0.00935375]
[1761754314923,1.25286741,111290.0,111280.0,0.00935375]
[1761754315138,1.35388741,111290.0,111280.0,0.00935375]
[1761754315359,1.30485741,111290.0,111280.0,0.00935375]
[1761754316172,1.35088741,111290.0,111280.0,0.00935375]
[1761754316589,0.51977528,111250.0,111240.0,0.125]
[1761754316809,0.55597372,111240.0,111230.0,1.75]
[1761754317012,3.38935507,111240.0,111230.0,1.75014561]
[1761754317227,3.33512279,111240.0,111230.0,1.75014561]
[1761754317636,3.47917408,111240.0,111230.0,1.75014561]
[1761754318767,3.48017408,111240.0,111230.0,1.75014561]
[1761754319389,3.48963299,111240.0,111230.0,1.75014561]
[1761754320929,3.48923299,111240.0,111230.0,1.75014561]
[1761754321142,1.2942971,111240.0,111230.0,1.75014561]
[1761754321784,1.28483819,111240.0,111230.0,1.75014561]
[1761754322012,1.25247819,111240.0,111230.0,1.75014561]
[1761754322422,1.25247819,111240.0,111230.0,1.83148381]
[1761754322423,0.91247819,111240.0,111230.0,1.83148381]
[1761754322674,1.25287819,111240.0,111230.0,1.83148381]
[1761754322890,0.341,111240.0,111230.0,1.92130282]
[1761754323120,0.341,111240.0,111230.0,2.19092943]
[1761754323121,0.001,111240.0,111230.0,2.19092943]
[1761754324893,0.001,111240.0,111230.0,2.19192943]
[1761754325063,0.73208675,111240.0,111230.0,1.84205282]
[1761754325296,0.51977656,111250.0,111230.0,1.92130282]
[1761754325503,0.91287819,111240.0,111230.0,1.89596462]
[1761754325714,0.73208675,111260.0,111240.0,0.21004009]
[1761754325899,0.73208675,111260.0,111250.0,0.16984901]
[1761754326095,0.82190576,111260.0,111250.0,0.22050181]
[1761754326301,0.73208675,111260.0,111250.0,0.22050181]
[1761754326510,0.91184587,111260.0,111250.0,0.22050181]
[1761754326931,0.73208675,111260.0,111250.0,0.22050181]
[1761754327089,0.91183025,111270.0,111250.0,0.22050181]
[1761754327288,0.73208675,111270.0,111260.0,0.07802]
[1761754327515,0.17974296,111270.0,111260.0,0.16783901]
[1761754328554,0.73208675,111270.0,111260.0,0.16783901]
[1761754328792,0.91182971,111270.0,111260.0,0.16783901]
[1761754328960,0.17974296,111270.0,111260.0,0.16883901]
[1761754329161,0.91531031,111280.0,111270.0,0.03026]
[1761754329428,0.91531031,111280.0,111270.0,0.16783901]
[1761754330052,1.00512932,111280.0,111270.0,0.03026]
[1761754330460,0.17974296,111270.0,111260.0,0.008]
[1761754330710,0.73208675,111270.0,111260.0,0.14457901]
[1761754330930,0.91579729,111280.0,111260.0,0.16783901]
[1761754331130,0.73257373,111280.0,111270.0,0.07802]
[1761754331301,0.73357373,111280.0,111270.0,0.17283901]
[1761754331500,0.91330054,111280.0,111270.0,0.17283901]
[1761754331658,0.91230054,111280.0,111270.0,0.16783901]
[1761754332057,0.91230054,111280.0,111270.0,0.03026]
[1761754332334,0.17975912,111260.0,111250.0,0.09553]
[1761754332471,0.91184587,111260.0,111250.0,0.18534901]
[1761754332674,0.91184587,111260.0,111250.0,0.13959901]
[1761754332896,0.17977528,111250.0,111240.0,0.04575]
[1761754333102,0.91186203,111250.0,111240.0,0.18296901]
[1761754333313,0.96274663,111250.0,111240.0,0.0474]
[1761754333492,0.17979144,111240.0,111230.0,1.75]
[1761754333671,0.91187819,111240.0,111230.0,1.75]
[1761754333885,0.91187819,111240.0,111230.0,1.7510882]
[1761754334129,0.91187819,111240.0,111230.0,1.7843682]
[1761754334330,1.0016972,111240.0,111230.0,1.7843682]
[1761754334515,0.91187819,111240.0,111230.0,1.91993721]
[1761754334719,0.91187819,111240.0,111230.0,1.92008282]
[1761754334903,0.91287819,111240.0,111230.0,1.92708282]
[1761754335100,0.18079144,111240.0,111230.0,1.92808282]
[1761754335326,0.91287819,111240.0,111230.0,1.92808282]
[1761754336097,2.91287819,111240.0,111230.0,1.79251381]
[1761754336300,2.91287819,111240.0,111230.0,1.83826381]
[1761754336691,0.18079144,111240.0,111230.0,1.83826381]
[1761754336923,0.91287819,111240.0,111230.0,1.83826381]
[1761754338353,0.001,111240.0,111230.0,1.92808282]
[1761754338551,0.73308675,111240.0,111230.0,2.01790183]
[1761754338867,0.001,111240.0,111230.0,1.92808282]
[1761754339275,0.001,111240.0,111230.0,2.10789042]
[1761754339475,0.001,111240.0,111230.0,1.92808282]
[1761754339675,0.001,111240.0,111230.0,2.10789042]
[1761754344308,0.001,111240.0,111230.0,4.49407269]
[1761754344551,0.001,111240.0,111230.0,4.5838917]
[1761754344928,0.001,111240.0,111230.0,4.53770943]
[1761754345342,0.73208675,111270.0,111260.0,0.16363912]
[1761754345491,0.73208675,111270.0,111260.0,0.17049901]
[1761754345724,0.73208675,111270.0,111260.0,0.21624901]
[1761754345953,0.73208675,111270.0,111260.0,0.39600813]
[1761754346618,0.73208675,111270.0,111260.0,0.21624901]
[1761754346818,0.91182971,111270.0,111260.0,0.21624901]
[1761754347282,0.73208675,111270.0,111260.0,0.21624901]
[1761754347630,0.73308675,111270.0,111260.0,0.22124901]
[1761754347964,0.91282971,111270.0,111260.0,0.22124901]
[1761754348164,0.001,111270.0,111260.0,0.40100813]
[1761754348372,0.001,111270.0,111260.0,0.22124901]
[1761754348573,0.73308675,111270.0,111260.0,0.22124901]
[1761754348971,0.18074296,111270.0,111260.0,0.22124901]
[1761754349134,0.95951971,111270.0,111260.0,0.08568]
[1761754349361,3.453271,111270.0,111260.0,0.03828]
[1761754349566,3.453271,111270.0,111260.0,0.005]
[1761754349899,3.453271,111270.0,111260.0,0.08403]
[1761754349900,1.25282971,111270.0,111260.0,0.08403]
[1761754350080,1.25282971,111270.0,111260.0,0.08303]
[1761754350285,1.25282971,111270.0,111260.0,0.03728]
[1761754350667,1.25182971,111270.0,111260.0,0.07903]
[1761754350873,1.25282971,111270.0,111260.0,0.07946516]
[1761754351081,1.34264872,111270.0,111260.0,0.07946516]
[1761754351295,1.25182971,111270.0,111260.0,0.07946516]
[1761754351495,1.25182971,111270.0,111260.0,0.08046516]
[1761754351699,0.91182971,111270.0,111260.0,0.08046516]
[1761754352313,0.91182971,111270.0,111260.0,0.07946516]
[1761754352513,0.17972703,111280.0,111260.0,0.34904262]
[1761754352714,0.91181378,111280.0,111270.0,0.07903]
[1761754353058,0.91181356,111280.0,111270.0,0.07903]
[1761754353849,0.91230054,111280.0,111270.0,0.07903]
[1761754354341,0.91330054,111280.0,111270.0,0.08403]
[1761754354495,1.00311955,111280.0,111270.0,0.08403]
[1761754354665,0.91230054,111280.0,111270.0,0.08003]
[1761754355064,0.91330054,111280.0,111270.0,0.08303]
[1761754355688,0.91330054,111280.0,111270.0,0.08203]
[1761754356310,1.25330054,111280.0,111270.0,0.03728]
[1761754356519,1.38672183,111280.0,111270.0,0.004]
[1761754356854,4.25635759,111280.0,111270.0,0.004]
[1761754357872,4.25535759,111280.0,111270.0,0.001]
[1761754358026,4.25535759,111280.0,111270.0,0.00121757]
[1761754358227,3.52727084,111280.0,111270.0,0.00221757]
[1761754358615,4.25935759,111280.0,111270.0,0.00121757]
[1761754359148,4.27035758,111280.0,111270.0,0.00121757]
[1761754359463,3.52827084,111280.0,111270.0,0.00111757]
[1761754359683,4.25935759,111280.0,111270.0,0.00111757]
[1761754359886,4.25635759,111280.0,111270.0,0.00011757]
[1761754360288,4.25535759,111280.0,111270.0,0.00011757]
[1761754361008,4.26735758,111280.0,111270.0,1e-08]
[1761754361218,4.25535759,111280.0,111270.0,1e-08]
[1761754361427,4.26535758,111280.0,111270.0,1e-08]
[1761754361631,4.26935758,111280.0,111270.0,1e-08]
[1761754361830,3.53727083,111280.0,111270.0,1e-08]
[1761754362438,3.53827083,111280.0,111270.0,1e-08]
[1761754362951,0.94806047,111240.0,111230.0,1.75]
[1761754363365,1.38845507,111240.0,111230.0,1.75]
[1761754363561,3.34017507,111240.0,111230.0,1.75]
[1761754363772,3.47827408,111240.0,111230.0,1.75]
[1761754364153,3.47827408,111240.0,111230.0,1.75014561]
[1761754364358,3.28929047,111240.0,111230.0,1.75014561]
[1761754364525,3.33857047,111240.0,111230.0,1.75514561]
[1761754364724,3.42838948,111240.0,111230.0,1.75514561]
[1761754365132,3.42838948,111240.0,111230.0,1.75614561]
[1761754367267,3.2275998,111240.0,111230.0,1.75614561]
[1761754367451,3.49769025,111240.0,111230.0,1.75614561]
[1761754367894,3.49669025,111240.0,111230.0,1.75114561]
[1761754368276,3.73939025,111240.0,111230.0,1.75014561]
[1761754368815,3.64957124,111240.0,111230.0,1.75014561]
[1761754369143,3.64957124,111240.0,111230.0,1.7510162]
[1761754369348,3.86502579,111240.0,111230.0,1.7510162]
[1761754369885,3.86602579,111240.0,111230.0,1.7520162]
[1761754370088,3.86502579,111240.0,111230.0,1.7510162]
[1761754370302,3.9548448,111240.0,111230.0,1.7510162]
[1761754370502,3.9558448,111240.0,111230.0,1.7530162]
[1761754370727,3.86602579,111240.0,111230.0,1.7530162]
[1761754371118,3.62332579,111240.0,111230.0,1.7530162]
[1761754371771,3.63332578,111240.0,111230.0,1.09694024]
[1761754371982,3.72314479,111240.0,111230.0,0.93174698]
[1761754372137,3.72314479,111240.0,111230.0,0.71001253]
[1761754372351,3.72314479,111240.0,111230.0,0.6429369]
[1761754372555,3.7131448,111240.0,111230.0,0.6429369]
[1761754372777,3.7121448,111240.0,111230.0,0.6409369]
[1761754373353,0.42981901,111230.0,111180.0,0.004994]
[1761754373542,0.42981901,111230.0,111170.0,0.00090747]
[1761754373543,2.71607074,111180.0,111170.0,0.00090747]
[1761754373748,2.59977194,111180.0,111170.0,0.04720747]
[1761754373960,2.59977194,111180.0,111170.0,0.22861883]
[1761754373961,0.47377065,111180.0,111170.0,0.22861883]
[1761754374160,0.47377065,111180.0,111170.0,0.1284143]
[1761754374576,0.47377065,111180.0,111170.0,0.0815143]
[1761754374788,0.47391654,111180.0,111170.0,0.1284143]
[1761754374961,0.47391654,111180.0,111170.0,0.21823331]
[1761754375399,0.684435,111180.0,111170.0,0.0022143]
[1761754375601,0.684435,111180.0,111170.0,0.0032143]
[1761754375813,0.654805,111180.0,111170.0,0.0082143]
[1761754376014,0.47491654,111180.0,111170.0,0.0881143]
[1761754376224,0.00014589,111180.0,111170.0,0.0352143]
[1761754376426,0.653805,111180.0,111170.0,0.0352143]
[1761754376606,0.654805,111180.0,111170.0,0.0442143]
[1761754376805,0.18003435,111180.0,111170.0,0.0352143]
[1761754377012,0.653805,111180.0,111170.0,0.0352143]
[1761754377217,0.656035,111180.0,111170.0,0.0092143]
[1761754377417,0.996035,111180.0,111170.0,0.0092143]
[1761754377617,0.994805,111180.0,111170.0,0.0432143]
[1761754378021,0.996035,111180.0,111170.0,0.0092143]
[1761754378521,0.994805,111180.0,111170.0,0.0901143]
[1761754378742,0.994805,111180.0,111170.0,0.0432143]
[1761754378949,0.00114589,111180.0,111170.0,0.17993331]
[1761754379158,0.00114589,111180.0,111170.0,0.35983796]
[1761754379362,0.47491654,111180.0,111170.0,0.17993331]
[1761754379910,0.47491654,111180.0,111170.0,0.35983796]
[1761754380112,0.47491654,111180.0,111170.0,0.17993331]
[1761754380493,0.656035,111180.0,111170.0,0.0102143]
[1761754380708,0.35654564,111180.0,111170.0,0.0102143]
[1761754380909,0.69221728,111180.0,111170.0,0.0102143]
[1761754381138,3.17031629,111180.0,111170.0,0.0102143]
[1761754381960,1.03221728,111180.0,111170.0,0.0102143]
[1761754382187,1.03098728,111180.0,111170.0,0.0102143]
[1761754382416,1.12250629,111180.0,111170.0,0.0102143]
[1761754382617,0.996505,111180.0,111170.0,0.0102143]
[1761754383578,0.00114589,111180.0,111170.0,0.0901143]
[1761754383793,0.47491654,111180.0,111170.0,0.0901143]
[1761754384205,0.654805,111180.0,111170.0,0.0901143]
[1761754384414,0.47491654,111180.0,111170.0,0.0901143]
[1761754385590,0.654805,111180.0,111170.0,0.0901143]
[1761754385777,0.656035,111180.0,111170.0,0.0102143]
[1761754386027,2.74049728,111180.0,111170.0,0.0102143]
[1761754386274,3.30408694,111180.0,111170.0,0.0102143]
[1761754386511,3.33082067,111180.0,111170.0,0.0102143]
[1761754386720,2.83031629,111180.0,111170.0,0.0102143]
[1761754387599,3.33082067,111180.0,111170.0,0.0102143]
[1761754387816,2.85705002,111180.0,111170.0,0.0102143]
[1761754388021,3.33082067,111180.0,111170.0,0.0102143]
[1761754388220,2.85605002,111180.0,111170.0,0.0022143]
[1761754388420,2.82931629,111180.0,111170.0,0.0022143]
[1761754388624,2.85705002,111180.0,111170.0,0.0062143]
[1761754388877,2.85605002,111180.0,111170.0,0.0022143]
[1761754389179,2.38227937,111180.0,111170.0,0.0022143]
[1761754389380,2.85605002,111180.0,111170.0,0.0022143]
[1761754389600,3.19705002,111180.0,111170.0,0.0062143]
[1761754389813,3.67082067,111180.0,111170.0,0.0062143]
[1761754390280,3.63463839,111180.0,111170.0,0.0062143]
[1761754390523,3.17031629,111180.0,111170.0,0.0062143]
[1761754390730,2.69654564,111180.0,111170.0,0.0062143]
[1761754391013,0.74585401,111180.0,111170.0,0.0062143]
[1761754391213,2.79413401,111180.0,111170.0,0.0062143]
[1761754391915,2.83031629,111180.0,111170.0,0.0062143]
[1761754392082,2.83031629,111180.0,111170.0,0.0848343]
[1761754392083,0.654805,111180.0,111170.0,0.0848343]
[1761754392491,0.656505,111180.0,111170.0,0.0525043]
[1761754392692,0.69268728,111180.0,111170.0,0.0062143]
[1761754392892,0.78250629,111180.0,111170.0,0.0062143]
[1761754393214,0.656505,111180.0,111170.0,0.0022143]
[1761754393546,2.79314401,111180.0,111170.0,0.0022143]
[1761754393750,3.30509694,111180.0,111170.0,0.0102143]
[1761754393958,3.64509694,111180.0,111170.0,0.0102143]
[1761754394696,3.16187774,111180.0,111170.0,0.0112143]
[1761754394908,3.13314401,111180.0,111170.0,0.0032143]
[1761754395090,3.16932629,111180.0,111170.0,0.0082143]
[1761754395299,3.17032629,111180.0,111170.0,0.0072143]
[1761754395500,3.16932629,111180.0,111170.0,0.0022143]
[1761754395909,3.17032629,111180.0,111170.0,0.0042143]
[1761754397228,3.19706002,111180.0,111170.0,0.0042143]
[1761754397435,3.17032629,111180.0,111170.0,0.0042143]
[1761754397672,3.19706002,111180.0,111170.0,0.0042143]
[1761754400316,3.67083067,111180.0,111170.0,0.0042143]
[1761754400615,3.19706002,111180.0,111170.0,0.0042143]
[1761754401129,3.67083067,111180.0,111170.0,0.0042143]
[1761754401325,3.12744595,111170.0,111160.0,0.05664774]
[1761754401532,3.30461496,111170.0,111160.0,0.05664774]
[1761754402023,2.21610311,111160.0,111150.0,0.00360069]
[1761754402236,3.32970715,111160.0,111150.0,0.00360069]
[1761754402818,2.0,111160.0,111150.0,0.08265649]
[1761754403039,0.17990551,111170.0,111150.0,0.13151649]
[1761754403241,0.47477065,111160.0,111150.0,0.10075069]
[1761754403673,0.47377065,111160.0,111150.0,0.13108069]
[1761754404325,0.65369148,111160.0,111150.0,0.13108069]
[1761754404873,0.65469148,111160.0,111150.0,0.13308069]
[1761754405079,0.65369148,111160.0,111150.0,0.13208069]
[1761754405317,0.47377065,111160.0,111150.0,0.13108069]
[1761754405523,0.47477065,111160.0,111150.0,0.13608069]
[1761754405735,0.47477065,111160.0,111150.0,0.13708069]
[1761754406040,0.47477065,111160.0,111150.0,0.2268997]
[1761754406250,0.47377065,111160.0,111150.0,0.2218997]
[1761754406479,0.65369148,111160.0,111150.0,0.13208069]
[1761754406692,0.65469148,111160.0,111150.0,0.13908069]
[1761754406876,0.65469148,111160.0,111150.0,0.13808069]
[1761754407288,0.47477065,111160.0,111150.0,0.40883672]
[1761754407489,0.001,111160.0,111150.0,0.40883672]
[1761754407741,0.47477065,111160.0,111150.0,0.2288997]
[1761754407943,0.47477065,111160.0,111150.0,0.13908069]
[1761754408534,0.65469148,111160.0,111150.0,0.13908069]
[1761754409052,0.65469148,111160.0,111150.0,0.13951649]
[1761754409609,0.47477065,111160.0,111150.0,0.13951649]
[1761754409809,0.47477065,111160.0,111150.0,0.2293355]
[1761754410281,0.001,111160.0,111150.0,0.40927252]
[1761754411215,0.47477065,111160.0,111150.0,0.40927252]
[1761754411841,0.001,111160.0,111150.0,0.40927252]
[1761754412333,0.47477065,111160.0,111150.0,0.2293355]
[1761754412538,0.47477065,111160.0,111150.0,0.40927252]
[1761754412976,0.47477065,111160.0,111150.0,0.2293355]
[1761754413332,0.47477065,111160.0,111150.0,0.40927252]
[1761754413547,0.47477065,111160.0,111150.0,0.2293355]
[1761754414170,0.47477065,111160.0,111150.0,0.13951649]
[1761754414373,0.65469148,111160.0,111150.0,0.13951649]
[1761754414938,1.12949213,111160.0,111150.0,0.01203649]
[1761754415121,1.26779114,111160.0,111150.0,0.01203649]
[1761754415382,1.21931114,111160.0,111150.0,0.01203649]
[1761754416044,1.25549342,111160.0,111150.0,0.01203649]
[1761754416294,3.30397342,111160.0,111150.0,0.01203649]
[1761754416911,3.67070715,111160.0,111150.0,0.01203649]
[1761754417113,0.17993702,111150.0,111140.0,0.1]
[1761754417316,3.68830961,111150.0,111140.0,0.1]
[1761754417519,3.72354334,111150.0,111140.0,0.1]
[1761754418162,0.1799694,111130.0,111120.0,0.53532191]
[1761754418390,3.31799572,111130.0,111120.0,0.53532191]
[1761754418600,0.68988005,111130.0,111120.0,0.56541191]
[1761754418960,0.47377065,111130.0,111120.0,0.61056191]
[1761754419380,0.47377065,111130.0,111120.0,0.61105323]
[1761754419773,0.47477065,111130.0,111120.0,0.61205323]
[1761754419965,0.47377065,111130.0,111120.0,0.61105323]
[1761754420550,0.03614,111160.0,111130.0,0.17995412]
[1761754420702,0.47377065,111160.0,111150.0,0.25938686]
[1761754421105,0.47377065,111160.0,111150.0,0.39335587]
[1761754421325,0.47377065,111160.0,111150.0,0.39335603]
[1761754421526,0.18888344,111180.0,111150.0,0.39335603]
[1761754421743,0.18891134,111190.0,111170.0,0.01393]
[1761754421935,0.67184029,111200.0,111180.0,0.03009]
[1761754422154,0.17987229,111190.0,111180.0,0.07524]
[1761754422783,0.67360232,111200.0,111180.0,0.07524]
[1761754422999,0.65378886,111190.0,111180.0,0.04515]
[1761754423177,0.47391657,111190.0,111180.0,0.04515]
[1761754423387,0.65378886,111190.0,111180.0,0.07524]
[1761754423738,0.47391657,111190.0,111180.0,0.082764]
[1761754423952,0.65378886,111190.0,111180.0,0.07524]
[1761754424527,0.65378886,111190.0,111180.0,0.03009]
[1761754424679,0.00014592,111190.0,111180.0,0.07524]
[1761754424883,0.65578886,111190.0,111180.0,0.03109]
[1761754425118,0.65378886,111190.0,111180.0,0.03009]
[1761754425368,0.18001821,111190.0,111180.0,0.07524]
[1761754425562,0.47391657,111190.0,111180.0,0.07524]
[1761754425766,0.65478886,111190.0,111180.0,0.07824]
[1761754426495,0.65478886,111190.0,111180.0,0.03309]
[1761754426785,0.65478886,111190.0,111180.0,0.07824]
[1761754427151,0.47491657,111190.0,111180.0,0.086064]
[1761754427354,0.27168797,111190.0,111180.0,0.07824]
[1761754427550,0.47377065,111190.0,111180.0,0.25812846]
[1761754428145,0.65364294,111190.0,111180.0,0.07824]
[1761754428361,0.47377065,111190.0,111180.0,0.07824]
[1761754428577,0.65364294,111190.0,111180.0,0.07824]
[1761754428784,0.65364294,111190.0,111180.0,0.03309]
[1761754429409,0.91348708,111190.0,111180.0,0.03309]
[1761754429607,0.91348708,111190.0,111180.0,0.07824]
[1761754429814,0.91348708,111190.0,111180.0,0.03309]
[1761754430015,0.91348708,111190.0,111180.0,0.07824]
[1761754430293,0.91348708,111190.0,111180.0,0.086064]
[1761754430489,0.91348708,111190.0,111180.0,0.07824]
[1761754431643,0.91348708,111190.0,111180.0,0.03309]
[1761754431878,0.91348708,111190.0,111180.0,0.07824]
[1761754433387,0.73361479,111190.0,111180.0,0.07824]
[1761754433591,0.17987229,111190.0,111180.0,0.07824]
[1761754434021,0.91348708,111190.0,111180.0,0.07824]
[1761754434535,0.96023708,111190.0,111180.0,0.03309]
[1761754435077,3.49263837,111190.0,111180.0,0.003]
[1761754436323,3.49263837,111190.0,111180.0,0.002]
[1761754436557,3.49363837,111190.0,111180.0,0.002]
[1761754437367,3.49363837,111190.0,111160.0,0.03042625]
[1761754437368,2.55608693,111170.0,111160.0,0.03042625]
[1761754437577,3.39832073,111170.0,111160.0,0.03042625]
[1761754437798,3.44592073,111170.0,111160.0,0.03042625]
[1761754438002,3.36213845,111170.0,111160.0,0.03042625]
[1761754438403,3.40973845,111170.0,111160.0,0.03042625]
[1761754438603,3.44592073,111170.0,111160.0,0.03042625]
[1761754439024,3.44892073,111170.0,111160.0,0.03142625]
[1761754440115,0.2161193,111150.0,111140.0,0.00021794]
[1761754440333,2.30641831,111150.0,111140.0,0.00021794]
[1761754440547,2.91403181,111150.0,111140.0,0.00021794]
[1761754440861,3.4279231,111150.0,111140.0,0.00021794]
[1761754441069,3.45465683,111150.0,111140.0,0.00021794]
[1761754441265,3.45465683,111150.0,111140.0,0.00036386]
[1761754441482,3.4289231,111150.0,111140.0,0.00036386]
[1761754441871,3.4329231,111150.0,111140.0,0.00236386]
[1761754442224,3.4329231,111150.0,111140.0,0.03045386]
[1761754442225,0.73361479,111150.0,111140.0,0.03045386]
[1761754442434,0.17993536,111160.0,111140.0,0.07560386]
[1761754442564,0.91955181,111150.0,111140.0,0.04651386]
[1761754442986,0.73961479,111150.0,111140.0,0.07660386]
[1761754443194,0.006,111150.0,111140.0,0.34637608]
[1761754443413,0.006,111150.0,111140.0,0.39901058]
[1761754444279,0.18132352,111200.0,111160.0,0.17991176]
[1761754444560,0.9134875,111190.0,111180.0,0.04936]
[1761754444985,0.9134875,111190.0,111180.0,0.07945]
[1761754445405,0.9134875,111190.0,111180.0,0.1246]
[1761754445624,0.19031632,111200.0,111180.0,0.1246]
[1761754445839,0.92393111,111200.0,111190.0,0.04515]
[1761754446029,0.92393111,111200.0,111190.0,0.1246]
[1761754446235,0.17987229,111190.0,111180.0,0.04936]
[1761754446491,0.91348708,111190.0,111180.0,0.09451]
[1761754446706,0.00146729,111200.0,111190.0,0.20996229]
[1761754446910,0.00146729,111200.0,111190.0,0.3734413]
[1761754448392,0.00346729,111200.0,111190.0,0.3734413]
[1761754450086,0.00346729,111200.0,111190.0,0.7134413]
[1761754450539,0.00346729,111200.0,111190.0,3.50323835]
[1761754450750,0.73361479,111250.0,111230.0,0.18878963]
[1761754450904,0.91353957,111250.0,111230.0,0.08981901]